[Event "2026 European Womens Championship"]
[Site "Batumi, GE"]
[Date "2026.06.04"]
[Round "10"]
[White "Danielyan, Lilia"]
[Black "Skvortsova, Alena"]
[Result "0-1"]
[Board "59"]
[TimeControl "5400+30"]
[WhiteFideId "13319841"]
[BlackFideId "24166251"]
[WhiteElo "1728"]
[BlackElo "2135"]
[BlackTitle "WFM"]
[WhiteClock "0:31:27"]
[BlackClock "0:30:04"]
[Variant "Standard"]

1. c4 {[%clk 1:30:54]}  g6 {[%clk 1:30:53]} 2. Nc3 {[%clk 1:30:50]}  Bg7 {[%clk 1:31:17]} 3. g3 {[%clk 1:31:04]}  e5 {[%clk 1:31:32]}
4. Bg2 {[%clk 1:31:00]}  Ne7 {[%clk 1:31:44]} 5. d3 {[%clk 1:29:40]}  O-O {[%clk 1:31:52]} 6. e3 {[%clk 1:24:19]}  c6 {[%clk 1:30:13]}
7. Nge2 {[%clk 1:23:24]}  a5 {[%clk 1:17:45]} 8. O-O {[%clk 1:20:29]}  d6 {[%clk 1:17:49]} 9. Rb1 {[%clk 1:17:44]}  Be6 {[%clk 1:16:50]}
10. h3 {[%clk 1:16:33]}  Nd7 {[%clk 1:07:21]} 11. a3 {[%clk 1:08:11]}  f5 {[%clk 1:06:16]} 12. Kh2 {[%clk 1:04:07]}  Nf6 {[%clk 1:00:11]}
13. b4 {[%clk 1:00:01]}  axb4 {[%clk 1:00:31]} 14. Rxb4 {[%clk 0:55:55]}  Qc7 {[%clk 0:56:47]} 15. Na4 {[%clk 0:52:47]}  Nd7 {[%clk 0:50:03]}
16. f4 {[%clk 0:41:41]}  Bf7 {[%clk 0:46:42]} 17. fxe5 {[%clk 0:37:01]}  dxe5 {[%clk 0:46:29]} 18. d4 {[%clk 0:36:27]}  Rfd8 {[%clk 0:41:44]}
19. d5 {[%clk 0:29:39]}  Nf6 {[%clk 0:38:44]} 20. e4 {[%clk 0:22:14]}  Rab8 {[%clk 0:23:12]} 21. Nb6 {[%clk 0:20:47]}  Nxe4 {[%clk 0:16:08]}
22. Bxe4 {[%clk 0:20:05]}  fxe4 {[%clk 0:16:34]} 23. Bg5 {[%clk 0:14:37]}  cxd5 {[%clk 0:16:22]} 24. Rxf7 {[%clk 0:08:45]}  Kxf7 {[%clk 0:16:36]}
25. Nxd5 {[%clk 0:08:40]}  Nxd5 {[%clk 0:08:04]} 26. Bxd8 {[%clk 0:08:35]}  Qxd8 {[%clk 0:07:57]} 27. cxd5 {[%clk 0:08:31]}  Qf6 {[%clk 0:07:52]}
28. Rb3 {[%clk 0:03:16]}  Qf2+ {[%clk 0:07:51]} 29. Kh1 {[%clk 0:03:45]}  Bf6 {[%clk 0:03:56]} 30. d6 {[%clk 0:03:04]}  Kg7 {[%clk 0:03:10]}
31. d7 {[%clk 0:02:38]}  e3 {[%clk 0:03:02]} 32. Ng1 {[%clk 0:02:32]}  Qxg3 {[%clk 0:03:03]} 33. Qd6 {[%clk 0:01:58]}  Rd8 {[%clk 0:01:57]}
34. Rb2 {[%clk 0:00:41]}  Qf4 {[%clk 0:01:56]} 35. Rg2 {[%clk 0:00:35]}  Qd4 {[%clk 0:01:55]} 36. Qc7 {[%clk 0:00:32]}  Rxd7 {[%clk 0:02:16]}
37. Qc2 {[%clk 0:00:47]}  Qd5 {[%clk 0:01:09]} 38. Qe2 {[%clk 0:00:47]}  Qe4 {[%clk 0:01:19]} 39. Qb5 {[%clk 0:00:57]}  Rd2 {[%clk 0:01:27]}
40. Ne2 {[%clk 0:01:17]}  Bg5 {[%clk 0:00:55]} 41. Kh2 {[%clk 0:30:12]}  Bf4+ {[%clk 0:31:26]} 42. Nxf4 {[%clk 0:31:02]}  Qxf4+ {[%clk 0:31:02]}
43. Kh1 {[%clk 0:31:27]}  Qe4 {[%clk 0:30:04]} 0-1

[Event "2026 European Womens Championship"]
[Site "Batumi, GE"]
[Date "2026.06.04"]
[Round "10"]
[White "Hayrapetyan, Nvard"]
[Black "Jimenez Fernandez, Rebeca"]
[Result "0-1"]
[Board "60"]
[TimeControl "5400+30"]
[WhiteFideId "13316460"]
[BlackFideId "32070934"]
[WhiteElo "2057"]
[BlackElo "2166"]
[WhiteTitle "WFM"]
[BlackTitle "WFM"]
[WhiteClock "0:11:31"]
[BlackClock "0:27:55"]
[Variant "Standard"]

1. d4 {[%clk 1:30:59]}  Nf6 {[%clk 1:30:54]} 2. c4 {[%clk 1:31:26]}  e6 {[%clk 1:31:20]} 3. Nc3 {[%clk 1:31:48]}  Bb4 {[%clk 1:31:45]}
4. e3 {[%clk 1:32:04]}  O-O {[%clk 1:32:08]} 5. Bd3 {[%clk 1:32:32]}  d5 {[%clk 1:32:30]} 6. a3 {[%clk 1:32:58]}  Bxc3+ {[%clk 1:32:52]}
7. bxc3 {[%clk 1:33:27]}  e5 {[%clk 1:33:09]} 8. dxe5 {[%clk 1:15:55]}  dxc4 {[%clk 1:33:29]} 9. exf6 {[%clk 1:10:05]}  cxd3 {[%clk 1:33:51]}
10. fxg7 {[%clk 1:10:13]}  Re8 {[%clk 1:34:15]} 11. Nf3 {[%clk 1:08:48]}  Bg4 {[%clk 1:29:20]} 12. h3 {[%clk 1:06:26]}  Bh5 {[%clk 1:29:06]}
13. g4 {[%clk 1:01:50]}  Bg6 {[%clk 1:29:22]} 14. O-O {[%clk 1:00:43]}  Nc6 {[%clk 1:18:33]} 15. Nd4 {[%clk 0:53:24]}  Na5 {[%clk 1:11:22]}
16. Bd2 {[%clk 0:33:05]}  Nc4 {[%clk 1:08:44]} 17. Qc1 {[%clk 0:30:56]}  c5 {[%clk 1:04:37]} 18. Nf3 {[%clk 0:29:56]}  h5 {[%clk 1:03:30]}
19. Ne1 {[%clk 0:27:18]}  hxg4 {[%clk 1:02:00]} 20. hxg4 {[%clk 0:27:41]}  Qh4 {[%clk 1:00:09]} 21. f3 {[%clk 0:27:53]}  Kxg7 {[%clk 0:53:02]}
22. Ng2 {[%clk 0:26:44]}  Qh3 {[%clk 0:51:11]} 23. e4 {[%clk 0:24:47]}  Ne5 {[%clk 0:50:54]} 24. c4 {[%clk 0:14:41]}  Nxf3+ {[%clk 0:49:00]}
25. Rxf3 {[%clk 0:14:13]}  Qxf3 {[%clk 0:49:15]} 26. Bc3+ {[%clk 0:13:54]}  f6 {[%clk 0:31:21]} 27. g5 {[%clk 0:13:07]}  Bxe4 {[%clk 0:30:46]}
28. Bxf6+ {[%clk 0:12:40]}  Kg8 {[%clk 0:29:25]} 29. Ra2 {[%clk 0:12:57]}  Qg3 {[%clk 0:28:24]} 30. Bc3 {[%clk 0:11:07]}  Bxg2 {[%clk 0:27:52]}
31. Rxg2 {[%clk 0:11:32]}  Qe3+ {[%clk 0:28:17]} 32. Qxe3 {[%clk 0:11:58]}  Rxe3 {[%clk 0:28:43]} 33. g6 {[%clk 0:11:43]}  Rae8 {[%clk 0:27:55]}
34. Kf1 {[%clk 0:11:31]}  Re2 {[%clk 0:27:55]} 0-1

[Event "2026 European Womens Championship"]
[Site "Batumi, GE"]
[Date "2026.06.04"]
[Round "10"]
[White "Gueci, Tea"]
[Black "Rusitashvili, Tea"]
[Result "1-0"]
[Board "61"]
[TimeControl "5400+30"]
[WhiteFideId "872342"]
[BlackFideId "13640771"]
[WhiteElo "2160"]
[BlackElo "1929"]
[WhiteTitle "WIM"]
[BlackTitle "WCM"]
[WhiteClock "0:28:08"]
[BlackClock "0:24:23"]
[Variant "Standard"]

1. e4 {[%clk 1:30:59]}  c5 {[%clk 1:30:53]} 2. Nf3 {[%clk 1:31:26]}  Nc6 {[%clk 1:31:13]} 3. Bb5 {[%clk 1:31:53]}  g6 {[%clk 1:31:30]}
4. O-O {[%clk 1:32:18]}  Bg7 {[%clk 1:31:48]} 5. d3 {[%clk 1:32:42]}  e5 {[%clk 1:30:11]} 6. a3 {[%clk 1:33:04]}  Nge7 {[%clk 1:30:19]}
7. b4 {[%clk 1:33:29]}  cxb4 {[%clk 1:28:15]} 8. axb4 {[%clk 1:33:55]}  Nxb4 {[%clk 1:25:31]} 9. Ba3 {[%clk 1:33:44]}  Nbc6 {[%clk 1:24:40]}
10. Bd6 {[%clk 1:33:18]}  Nd4 {[%clk 1:19:24]} 11. Nxd4 {[%clk 1:15:32]}  Qb6 {[%clk 1:11:31]} 12. Bxe7 {[%clk 1:03:45]}  exd4 {[%clk 1:07:39]}
13. Ba3 {[%clk 1:00:34]}  Qxb5 {[%clk 1:07:38]} 14. Re1 {[%clk 0:51:35]}  Qc6 {[%clk 0:56:57]} 15. Nd2 {[%clk 0:47:58]}  b5 {[%clk 0:54:35]}
16. e5 {[%clk 0:44:13]}  Bf8 {[%clk 0:51:58]} 17. Ne4 {[%clk 0:38:23]}  Bxa3 {[%clk 0:51:22]} 18. Rxa3 {[%clk 0:36:52]}  O-O {[%clk 0:50:02]}
19. Qa1 {[%clk 0:35:08]}  Qb6 {[%clk 0:45:13]} 20. Qc1 {[%clk 0:31:26]}  Kg7 {[%clk 0:41:39]} 21. Qf4 {[%clk 0:30:34]}  Bb7 {[%clk 0:35:59]}
22. Nd6 {[%clk 0:30:34]}  Bd5 {[%clk 0:34:56]} 23. Qf6+ {[%clk 0:29:27]}  Kg8 {[%clk 0:35:17]} 24. h4 {[%clk 0:27:41]}  h5 {[%clk 0:32:17]}
25. Rea1 {[%clk 0:27:54]}  Qc6 {[%clk 0:28:39]} 26. Ra6 {[%clk 0:28:07]}  Qc5 {[%clk 0:24:23]} 27. Nf5 {[%clk 0:28:08]} 1-0

[Event "2026 European Womens Championship"]
[Site "Batumi, GE"]
[Date "2026.06.04"]
[Round "10"]
[White "Ashotia, Barbare"]
[Black "Ptacnikova, Lenka"]
[Result "0-1"]
[Board "62"]
[TimeControl "5400+30"]
[WhiteFideId "13625187"]
[BlackFideId "305650"]
[WhiteElo "1913"]
[BlackElo "2126"]
[BlackTitle "WGM"]
[WhiteClock "0:07:05"]
[BlackClock "0:22:30"]
[Variant "Standard"]

1. e4 {[%clk 1:28:44]}  c5 {[%clk 1:30:47]} 2. Nf3 {[%clk 1:28:52]}  e6 {[%clk 1:30:56]} 3. d4 {[%clk 1:28:37]}  cxd4 {[%clk 1:31:21]}
4. Nxd4 {[%clk 1:28:38]}  Nc6 {[%clk 1:31:33]} 5. Nc3 {[%clk 1:28:33]}  Nf6 {[%clk 1:31:51]} 6. Nxc6 {[%clk 1:28:16]}  bxc6 {[%clk 1:32:16]}
7. e5 {[%clk 1:28:33]}  Nd5 {[%clk 1:32:41]} 8. Ne4 {[%clk 1:28:46]}  Bb7 {[%clk 1:33:02]} 9. c4 {[%clk 1:12:35]}  Nb4 {[%clk 1:33:20]}
10. Bd2 {[%clk 1:07:08]}  c5 {[%clk 1:26:00]} 11. Nd6+ {[%clk 1:03:27]}  Bxd6 {[%clk 1:26:24]} 12. exd6 {[%clk 1:03:50]}  Qh4 {[%clk 1:21:22]}
13. Bxb4 {[%clk 1:02:30]}  cxb4 {[%clk 1:21:03]} 14. Qd2 {[%clk 0:55:54]}  a5 {[%clk 1:19:40]} 15. O-O-O {[%clk 0:53:39]}  O-O {[%clk 1:18:56]}
16. f3 {[%clk 0:50:19]}  Rfc8 {[%clk 1:17:56]} 17. Qe3 {[%clk 0:42:39]}  Qh5 {[%clk 1:12:26]} 18. Rd4 {[%clk 0:35:17]}  Qc5 {[%clk 1:07:45]}
19. Qd2 {[%clk 0:32:33]}  Ra6 {[%clk 1:06:47]} 20. Bd3 {[%clk 0:24:26]}  f5 {[%clk 1:00:24]} 21. Bc2 {[%clk 0:23:46]}  e5 {[%clk 0:56:43]}
22. Rh4 {[%clk 0:23:43]}  e4 {[%clk 0:51:06]} 23. Rd1 {[%clk 0:15:39]}  Qxc4 {[%clk 0:44:04]} 24. Kb1 {[%clk 0:15:58]}  a4 {[%clk 0:39:46]}
25. b3 {[%clk 0:08:12]}  Qc5 {[%clk 0:28:20]} 26. fxe4 {[%clk 0:08:14]}  Rxd6 {[%clk 0:23:58]} 27. Qe2 {[%clk 0:07:05]}  Ba6 {[%clk 0:22:30]} 0-1

[Event "2026 European Womens Championship"]
[Site "Batumi, GE"]
[Date "2026.06.04"]
[Round "10"]
[White "Donghvani, Nia"]
[Black "Kalyoncu, Beren"]
[Result "1/2-1/2"]
[Board "63"]
[TimeControl "5400+30"]
[WhiteFideId "13614649"]
[BlackFideId "51608383"]
[WhiteElo "2117"]
[BlackElo "1840"]
[WhiteTitle "WFM"]
[BlackTitle "WCM"]
[WhiteClock "0:05:29"]
[BlackClock "0:06:42"]
[Variant "Standard"]

1. c4 {[%clk 1:30:48]}  e5 {[%clk 1:30:42]} 2. Nc3 {[%clk 1:30:35]}  Bb4 {[%clk 1:30:58]} 3. Qc2 {[%clk 1:19:37]}  Nf6 {[%clk 1:28:36]}
4. a3 {[%clk 1:13:16]}  Bxc3 {[%clk 1:28:45]} 5. dxc3 {[%clk 1:12:54]}  d6 {[%clk 1:28:08]} 6. e4 {[%clk 1:12:30]}  O-O {[%clk 1:26:12]}
7. Nf3 {[%clk 1:09:59]}  Nbd7 {[%clk 1:23:46]} 8. b4 {[%clk 1:03:13]}  a5 {[%clk 1:20:02]} 9. Be2 {[%clk 1:01:44]}  h6 {[%clk 1:17:07]}
10. O-O {[%clk 1:01:30]}  Qe7 {[%clk 1:13:06]} 11. h3 {[%clk 0:58:22]}  b6 {[%clk 1:06:18]} 12. Nh4 {[%clk 0:52:54]}  Nb8 {[%clk 1:04:23]}
13. Be3 {[%clk 0:47:55]}  Nh7 {[%clk 0:49:04]} 14. Nf5 {[%clk 0:47:36]}  Bxf5 {[%clk 0:49:23]} 15. exf5 {[%clk 0:48:04]}  Nd7 {[%clk 0:47:51]}
16. f4 {[%clk 0:46:01]}  axb4 {[%clk 0:46:41]} 17. cxb4 {[%clk 0:45:47]}  exf4 {[%clk 0:44:42]} 18. Bxf4 {[%clk 0:46:09]}  Ne5 {[%clk 0:42:43]}
19. Qc3 {[%clk 0:40:17]}  Rfe8 {[%clk 0:38:31]} 20. Rae1 {[%clk 0:34:56]}  Qf6 {[%clk 0:36:40]} 21. c5 {[%clk 0:30:45]}  bxc5 {[%clk 0:36:58]}
22. bxc5 {[%clk 0:30:38]}  Ng5 {[%clk 0:34:54]} 23. Bxg5 {[%clk 0:26:13]}  hxg5 {[%clk 0:35:12]} 24. cxd6 {[%clk 0:22:49]}  cxd6 {[%clk 0:34:33]}
25. Bb5 {[%clk 0:21:41]}  Rec8 {[%clk 0:33:07]} 26. Qg3 {[%clk 0:18:51]}  Rc5 {[%clk 0:29:00]} 27. a4 {[%clk 0:18:41]}  Rac8 {[%clk 0:27:50]}
28. Rd1 {[%clk 0:17:26]}  Rc3 {[%clk 0:25:29]} 29. Qf2 {[%clk 0:17:50]}  R8c5 {[%clk 0:22:59]} 30. Qd4 {[%clk 0:11:15]}  Nc4 {[%clk 0:19:56]}
31. Qxf6 {[%clk 0:09:11]}  gxf6 {[%clk 0:20:10]} 32. Bxc4 {[%clk 0:09:29]}  R3xc4 {[%clk 0:19:46]} 33. Rxd6 {[%clk 0:09:54]}  Rxa4 {[%clk 0:19:39]}
34. Rxf6 {[%clk 0:10:09]}  Rc2 {[%clk 0:19:14]} 35. Rf3 {[%clk 0:09:19]}  Kg7 {[%clk 0:13:30]} 36. Rb6 {[%clk 0:09:47]}  Ra5 {[%clk 0:11:55]}
37. f6+ {[%clk 0:07:34]}  Kg6 {[%clk 0:11:45]} 38. Rb8 {[%clk 0:07:21]}  Rf5 {[%clk 0:05:05]} 39. Rg8+ {[%clk 0:07:44]}  Kxf6 {[%clk 0:05:29]}
40. Rxf5+ {[%clk 0:06:42]} 1/2-1/2

[Event "2026 European Womens Championship"]
[Site "Batumi, GE"]
[Date "2026.06.04"]
[Round "10"]
[White "Khairova, Evelina"]
[Black "Aghaverdiyeva, Maryam"]
[Result "0-1"]
[Board "64"]
[TimeControl "5400+30"]
[WhiteFideId "2845768"]
[BlackFideId "13452509"]
[WhiteElo "1880"]
[BlackElo "2103"]
[BlackTitle "WFM"]
[WhiteClock "0:00:58"]
[BlackClock "0:02:11"]
[Variant "Standard"]

1. e4 {[%clk 1:30:57]}  c5 {[%clk 1:29:50]} 2. Nf3 {[%clk 1:31:23]}  e6 {[%clk 1:30:09]} 3. g3 {[%clk 1:31:49]}  Nc6 {[%clk 1:30:20]}
4. Bg2 {[%clk 1:32:14]}  Nf6 {[%clk 1:30:41]} 5. d3 {[%clk 1:32:33]}  d5 {[%clk 1:31:06]} 6. Qe2 {[%clk 1:32:58]}  Be7 {[%clk 1:31:31]}
7. O-O {[%clk 1:32:44]}  b5 {[%clk 1:31:26]} 8. exd5 {[%clk 1:32:33]}  exd5 {[%clk 1:24:36]} 9. d4 {[%clk 1:32:58]}  c4 {[%clk 1:24:20]}
10. b3 {[%clk 1:21:49]}  Be6 {[%clk 1:16:25]} 11. a4 {[%clk 1:11:52]}  a6 {[%clk 1:16:05]} 12. Rd1 {[%clk 1:06:56]}  O-O {[%clk 1:10:46]}
13. axb5 {[%clk 1:03:00]}  axb5 {[%clk 1:11:02]} 14. Rxa8 {[%clk 1:02:12]}  Qxa8 {[%clk 1:11:24]} 15. Ng5 {[%clk 1:01:57]}  Bg4 {[%clk 1:03:09]}
16. f3 {[%clk 0:58:10]}  Bd7 {[%clk 1:00:20]} 17. Nc3 {[%clk 0:39:59]}  Qa5 {[%clk 0:49:26]} 18. Nb1 {[%clk 0:27:17]}  Re8 {[%clk 0:46:08]}
19. Be3 {[%clk 0:24:10]}  Ng4 {[%clk 0:32:20]} 20. Bd2 {[%clk 0:13:20]}  Bb4 {[%clk 0:28:26]} 21. Qf1 {[%clk 0:05:54]}  Bxd2 {[%clk 0:25:46]}
22. Rxd2 {[%clk 0:06:17]}  Ne3 {[%clk 0:25:45]} 23. Qc1 {[%clk 0:05:49]}  Nxg2 {[%clk 0:14:32]} 24. Kxg2 {[%clk 0:05:49]}  h6 {[%clk 0:14:48]}
25. Nh3 {[%clk 0:05:42]}  Bxh3+ {[%clk 0:15:07]} 26. Kxh3 {[%clk 0:06:05]}  c3 {[%clk 0:15:32]} 27. Rd3 {[%clk 0:05:43]}  b4 {[%clk 0:15:56]}
28. Re3 {[%clk 0:03:18]}  Qd8 {[%clk 0:15:20]} 29. Nxc3 {[%clk 0:02:24]}  bxc3 {[%clk 0:14:37]} 30. Rxc3 {[%clk 0:02:52]}  Nxd4 {[%clk 0:12:10]}
31. Rd3 {[%clk 0:02:38]}  Qc8+ {[%clk 0:09:32]} 32. g4 {[%clk 0:01:47]}  Ne2 {[%clk 0:07:15]} 33. Qd2 {[%clk 0:02:12]}  Qc7 {[%clk 0:07:20]}
34. Re3 {[%clk 0:01:42]}  Nf4+ {[%clk 0:07:39]} 35. Kg3 {[%clk 0:01:43]}  Rxe3 {[%clk 0:07:36]} 36. Qxe3 {[%clk 0:02:08]}  Ne6+ {[%clk 0:07:50]}
37. f4 {[%clk 0:01:55]}  Qxc2 {[%clk 0:07:59]} 38. f5 {[%clk 0:01:53]}  Ng5 {[%clk 0:07:47]} 39. h4 {[%clk 0:01:47]}  Ne4+ {[%clk 0:08:05]}
40. Kf3 {[%clk 0:01:52]}  Qh2 {[%clk 0:06:07]} 41. g5 {[%clk 0:00:58]}  h5 {[%clk 0:02:11]} 0-1

[Event "2026 European Womens Championship"]
[Site "Batumi, GE"]
[Date "2026.06.04"]
[Round "10"]
[White "Esadze, Tamari"]
[Black "Liashkevich, Lizaveta"]
[Result "0-1"]
[Board "65"]
[TimeControl "5400+30"]
[WhiteFideId "13611186"]
[BlackFideId "13518658"]
[WhiteElo "1974"]
[BlackElo "2079"]
[BlackTitle "WFM"]
[WhiteClock "0:00:56"]
[BlackClock "0:07:25"]
[Variant "Standard"]

1. e4 {[%clk 1:30:59]}  e6 {[%clk 1:30:56]} 2. d4 {[%clk 1:31:26]}  d5 {[%clk 1:31:23]} 3. Nd2 {[%clk 1:31:51]}  c5 {[%clk 1:31:48]}
4. Ngf3 {[%clk 1:32:01]}  cxd4 {[%clk 1:31:39]} 5. exd5 {[%clk 1:31:20]}  Qxd5 {[%clk 1:32:05]} 6. Bc4 {[%clk 1:31:46]}  Qd7 {[%clk 1:32:04]}
7. O-O {[%clk 1:32:04]}  Nc6 {[%clk 1:31:48]} 8. Nb3 {[%clk 1:32:16]}  a6 {[%clk 1:31:30]} 9. Nbxd4 {[%clk 1:30:32]}  Nxd4 {[%clk 1:31:48]}
10. Nxd4 {[%clk 1:30:49]}  Qc7 {[%clk 1:32:09]} 11. Bd3 {[%clk 1:27:08]}  Bd6 {[%clk 1:31:23]} 12. h3 {[%clk 1:26:52]}  Ne7 {[%clk 1:30:57]}
13. c3 {[%clk 1:21:46]}  O-O {[%clk 1:24:01]} 14. Qh5 {[%clk 1:15:19]}  f5 {[%clk 1:07:37]} 15. Bg5 {[%clk 1:11:23]}  Ng6 {[%clk 1:00:31]}
16. Qe2 {[%clk 0:57:14]}  e5 {[%clk 0:58:00]} 17. Bc4+ {[%clk 0:52:00]}  Kh8 {[%clk 0:58:25]} 18. Ne6 {[%clk 0:50:34]}  Bxe6 {[%clk 0:58:49]}
19. Bxe6 {[%clk 0:51:01]}  Rae8 {[%clk 0:49:38]} 20. Bb3 {[%clk 0:41:51]}  e4 {[%clk 0:48:39]} 21. Rad1 {[%clk 0:34:53]}  f4 {[%clk 0:46:04]}
22. Rd4 {[%clk 0:18:50]}  f3 {[%clk 0:43:55]} 23. Qd1 {[%clk 0:14:29]}  Rf5 {[%clk 0:32:06]} 24. Rd5 {[%clk 0:08:25]}  Ref8 {[%clk 0:27:34]}
25. g4 {[%clk 0:08:01]}  Rxd5 {[%clk 0:18:10]} 26. Qxd5 {[%clk 0:08:27]}  Bf4 {[%clk 0:17:23]} 27. Bxf4 {[%clk 0:02:08]}  Nxf4 {[%clk 0:17:29]}
28. Qxe4 {[%clk 0:02:35]}  Nxh3+ {[%clk 0:13:47]} 29. Kh1 {[%clk 0:03:03]}  Qd6 {[%clk 0:11:30]} 30. Qd5 {[%clk 0:01:14]}  Qb6 {[%clk 0:08:43]}
31. Qd2 {[%clk 0:00:44]}  Qf6 {[%clk 0:08:27]} 32. Re1 {[%clk 0:00:35]}  Qh4 {[%clk 0:06:45]} 33. Qd6 {[%clk 0:00:35]}  Nf4+ {[%clk 0:07:01]}
34. Kg1 {[%clk 0:00:56]}  Qxg4+ {[%clk 0:07:25]} 0-1

[Event "2026 European Womens Championship"]
[Site "Batumi, GE"]
[Date "2026.06.04"]
[Round "10"]
[White "Chkhartishvili, Lika"]
[Black "Subramanian, Anusha"]
[Result "1/2-1/2"]
[Board "66"]
[TimeControl "5400+30"]
[WhiteFideId "13635166"]
[BlackFideId "477710"]
[WhiteElo "1822"]
[BlackElo "2068"]
[BlackTitle "WFM"]
[WhiteClock "0:39:48"]
[BlackClock "0:05:08"]
[Variant "Standard"]

1. e4 {[%clk 1:30:57]}  e6 {[%clk 1:30:55]} 2. d4 {[%clk 1:31:22]}  d5 {[%clk 1:31:23]} 3. Nd2 {[%clk 1:31:45]}  c5 {[%clk 1:31:49]}
4. exd5 {[%clk 1:32:04]}  Qxd5 {[%clk 1:32:13]} 5. Ngf3 {[%clk 1:28:20]}  cxd4 {[%clk 1:32:36]} 6. Bc4 {[%clk 1:28:31]}  Qd7 {[%clk 1:33:00]}
7. Nb3 {[%clk 1:27:44]}  Nc6 {[%clk 1:33:24]} 8. Nbxd4 {[%clk 1:26:38]}  Nxd4 {[%clk 1:33:08]} 9. Nxd4 {[%clk 1:26:50]}  a6 {[%clk 1:33:16]}
10. Be3 {[%clk 1:24:57]}  Qc7 {[%clk 1:32:45]} 11. Be2 {[%clk 1:22:01]}  Bd7 {[%clk 1:27:45]} 12. O-O {[%clk 1:21:30]}  Bd6 {[%clk 1:28:03]}
13. h3 {[%clk 1:21:07]}  Ne7 {[%clk 1:27:52]} 14. c4 {[%clk 1:20:41]}  Ng6 {[%clk 1:26:53]} 15. Rc1 {[%clk 1:20:10]}  Bf4 {[%clk 1:16:35]}
16. Bxf4 {[%clk 1:19:14]}  Qxf4 {[%clk 1:14:23]} 17. Bf3 {[%clk 1:16:38]}  Rb8 {[%clk 1:04:47]} 18. g3 {[%clk 1:12:54]}  Qc7 {[%clk 1:03:38]}
19. Bg2 {[%clk 1:11:45]}  O-O {[%clk 1:02:50]} 20. b4 {[%clk 1:07:29]}  Rbd8 {[%clk 1:01:23]} 21. Qc2 {[%clk 1:04:57]}  e5 {[%clk 0:59:24]}
22. Nb3 {[%clk 1:03:42]}  Qc8 {[%clk 0:53:59]} 23. Nc5 {[%clk 0:58:28]}  Bc6 {[%clk 0:44:32]} 24. Bxc6 {[%clk 0:57:48]}  Qxc6 {[%clk 0:44:55]}
25. Rfd1 {[%clk 0:56:50]}  Qc8 {[%clk 0:32:29]} 26. Rxd8 {[%clk 0:55:09]}  Rxd8 {[%clk 0:32:53]} 27. Rd1 {[%clk 0:55:19]}  Re8 {[%clk 0:30:12]}
28. Kh2 {[%clk 0:51:32]}  h5 {[%clk 0:22:37]} 29. Qe4 {[%clk 0:47:13]}  b6 {[%clk 0:20:46]} 30. Nd7 {[%clk 0:39:51]}  Re6 {[%clk 0:15:52]}
31. c5 {[%clk 0:37:42]}  bxc5 {[%clk 0:15:31]} 32. Nxc5 {[%clk 0:37:12]}  Rf6 {[%clk 0:15:08]} 33. Rd2 {[%clk 0:37:07]}  h4 {[%clk 0:14:56]}
34. Kg2 {[%clk 0:33:47]}  hxg3 {[%clk 0:12:13]} 35. fxg3 {[%clk 0:34:11]}  a5 {[%clk 0:03:36]} 36. Nd7 {[%clk 0:29:21]}  Rc6 {[%clk 0:02:11]}
37. b5 {[%clk 0:22:34]}  Rc4 {[%clk 0:01:09]} 38. Nb6 {[%clk 0:20:07]}  Qxh3+ {[%clk 0:00:39]} 39. Kxh3 {[%clk 0:20:30]}  Rxe4 {[%clk 0:01:06]}
40. Nd5 {[%clk 0:20:29]}  Rd4 {[%clk 0:00:34]} 41. Rxd4 {[%clk 0:20:08]}  exd4 {[%clk 0:00:58]} 42. b6 {[%clk 0:18:25]}  Ne5 {[%clk 0:00:39]}
43. b7 {[%clk 0:18:26]}  Nd7 {[%clk 0:00:52]} 44. Kg2 {[%clk 0:18:39]}  Kf8 {[%clk 0:29:54]} 45. Kf3 {[%clk 0:45:44]}  f6 {[%clk 0:22:22]}
46. Nc7 {[%clk 0:42:45]}  Nb8 {[%clk 0:19:17]} 47. Ne6+ {[%clk 0:42:34]}  Ke7 {[%clk 0:16:27]} 48. Nxg7 {[%clk 0:40:47]}  Kd6 {[%clk 0:16:29]}
49. Ke4 {[%clk 0:40:35]}  Kc7 {[%clk 0:12:43]} 50. Kxd4 {[%clk 0:39:59]}  Kxb7 {[%clk 0:10:55]} 51. Ne8 {[%clk 0:39:36]}  Nd7 {[%clk 0:09:52]}
52. Kd5 {[%clk 0:39:23]}  a4 {[%clk 0:08:41]} 53. Kc4 {[%clk 0:38:46]}  Kc6 {[%clk 0:06:45]} 54. Kb4 {[%clk 0:39:08]}  a3 {[%clk 0:05:56]}
55. Kxa3 {[%clk 0:39:19]}  Kb5 {[%clk 0:05:53]} 56. Kb3 {[%clk 0:39:27]}  Nc5+ {[%clk 0:05:09]} 57. Kc2 {[%clk 0:39:44]}  Ne4 {[%clk 0:04:23]}
58. g4 {[%clk 0:40:02]}  Kc4 {[%clk 0:04:36]} 59. a3 {[%clk 0:39:51]}  Kb5 {[%clk 0:04:02]} 60. Kb3 {[%clk 0:39:57]}  Nc5+ {[%clk 0:04:11]}
61. Kc3 {[%clk 0:39:03]}  Ne4+ {[%clk 0:04:33]} 62. Kd4 {[%clk 0:38:59]}  Nf2 {[%clk 0:04:51]} 63. Nxf6 {[%clk 0:39:22]}  Nxg4 {[%clk 0:05:13]}
64. Nxg4 {[%clk 0:39:48]}  Ka4 {[%clk 0:05:08]} 65. Ke4 {[%clk 0:39:41]} 1/2-1/2

[Event "2026 European Womens Championship"]
[Site "Batumi, GE"]
[Date "2026.06.04"]
[Round "10"]
[White "Krkyasharyan, Sona"]
[Black "Avelino, Camila Biscaya"]
[Result "0-1"]
[Board "67"]
[TimeControl "5400+30"]
[WhiteFideId "13316729"]
[BlackFideId "1938975"]
[WhiteElo "2063"]
[BlackElo "1937"]
[WhiteTitle "WFM"]
[BlackTitle "WFM"]
[WhiteClock "0:35:44"]
[BlackClock "0:02:36"]
[Variant "Standard"]

1. d4 {[%clk 1:30:58]}  Nf6 {[%clk 1:30:51]} 2. c4 {[%clk 1:31:23]}  g6 {[%clk 1:31:16]} 3. Nc3 {[%clk 1:31:49]}  Bg7 {[%clk 1:31:36]}
4. e4 {[%clk 1:32:15]}  d6 {[%clk 1:31:57]} 5. h3 {[%clk 1:32:35]}  O-O {[%clk 1:32:07]} 6. Be3 {[%clk 1:33:01]}  Nbd7 {[%clk 1:26:43]}
7. g4 {[%clk 1:33:04]}  e5 {[%clk 1:26:56]} 8. d5 {[%clk 1:32:53]}  Nc5 {[%clk 1:27:09]} 9. Qc2 {[%clk 1:32:53]}  a5 {[%clk 1:22:09]}
10. Nge2 {[%clk 1:32:50]}  c6 {[%clk 1:21:49]} 11. Bxc5 {[%clk 1:19:22]}  dxc5 {[%clk 1:22:12]} 12. O-O-O {[%clk 1:19:48]}  Qe7 {[%clk 1:09:05]}
13. Ng3 {[%clk 1:18:15]}  Ne8 {[%clk 1:03:36]} 14. Kb1 {[%clk 1:15:42]}  Nd6 {[%clk 0:55:25]} 15. Na4 {[%clk 1:07:43]}  cxd5 {[%clk 0:40:08]}
16. cxd5 {[%clk 1:08:03]}  b5 {[%clk 0:36:04]} 17. Nxc5 {[%clk 1:07:57]}  Bd7 {[%clk 0:36:08]} 18. Nxd7 {[%clk 1:07:22]}  Qxd7 {[%clk 0:36:24]}
19. Qc6 {[%clk 1:01:29]}  Qe7 {[%clk 0:35:39]} 20. Bxb5 {[%clk 0:59:46]}  Rab8 {[%clk 0:34:40]} 21. Bd3 {[%clk 0:58:17]}  Bh6 {[%clk 0:30:16]}
22. h4 {[%clk 0:50:16]}  Rfc8 {[%clk 0:29:18]} 23. Qa4 {[%clk 0:50:15]}  Qa7 {[%clk 0:27:28]} 24. Rhf1 {[%clk 0:42:58]}  Rb4 {[%clk 0:26:41]}
25. Qa3 {[%clk 0:43:21]}  Rcb8 {[%clk 0:26:51]} 26. b3 {[%clk 0:42:18]}  Bf8 {[%clk 0:24:39]} 27. Qc1 {[%clk 0:40:48]}  a4 {[%clk 0:24:26]}
28. Qe3 {[%clk 0:38:41]}  Qa5 {[%clk 0:13:13]} 29. Bc2 {[%clk 0:36:10]}  Nc4 {[%clk 0:13:20]} 30. Qd3 {[%clk 0:34:24]}  Na3+ {[%clk 0:12:39]}
31. Kc1 {[%clk 0:34:45]}  Nxc2 {[%clk 0:12:50]} 32. Qxc2 {[%clk 0:35:08]}  axb3 {[%clk 0:13:11]} 33. axb3 {[%clk 0:35:35]}  Rxb3 {[%clk 0:13:33]}
34. Rd3 {[%clk 0:34:55]}  Rxd3 {[%clk 0:07:10]} 35. Qxd3 {[%clk 0:35:11]}  Qa1+ {[%clk 0:07:35]} 36. Kd2 {[%clk 0:35:30]}  Qa2+ {[%clk 0:07:59]}
37. Ke3 {[%clk 0:34:57]}  Rb3 {[%clk 0:08:24]} 38. Qxb3 {[%clk 0:35:07]}  Qxb3+ {[%clk 0:08:49]} 39. Ke2 {[%clk 0:35:34]}  Bc5 {[%clk 0:07:51]}
40. Rd1 {[%clk 0:35:44]}  Bxf2 {[%clk 0:02:36]} 0-1